Cogmind - Beta 15 @@@ ROGUE MODE // 2025.06.16 @ 15:24:16 Player: Mogwok Wargfriend Result: Destroyed by G-47 Trooper with Particle Gun Performance ------------- Evolutions (0) 0 Regions Visited (2) 400 Robots Destroyed (44) 220 Value Destroyed (755) 755 Prototype IDs (0) 0 Alien Tech Used (0) 0 Bonus (0) 0 TOTAL SCORE: 1375 Bonus ------- None Cogmind --------- Core Integrity 0/250 Matter 276/300 Energy 246/250 System Corruption 5% Temperature Cool (22) Movement Treading (160) Location -10/Mines Parts ------- > --- POWER (1) -------- Ion Engine > --- PROPULSION (2) --- Light Treads Light Treads > --- UTILITY (2) ------ Small Storage Unit Light Armor Plating > --- WEAPON (2) ------- Beam Cannon Light Cannon > --- INVENTORY (8) ---- Ion Engine Light Treads Light Treads Light Treads High-capacity Battery (250) Visual Processing Unit Light Cannon Mining Laser Peak State ------------ > --- POWER ------------ Ion Engine > --- PROPULSION ------- Wheel Compact Wheel > --- UTILITY ---------- Small Storage Unit Improved Terrain Scanner > --- WEAPON ----------- EM Pulse Gun Medium Laser > --- INVENTORY -------- Light Ion Engine Light Treads Light Treads Wheel Wheel Medium Laser Mining Laser [Rating: 9] Favorites ----------- Power Ion Engine Engine Ion Engine Propulsion Light Treads Treads Light Treads Leg Aluminum Leg Wheel Wheel Utility Small Storage Unit Device Heat Sink Storage Small Storage Unit Protection Light Armor Plating Weapon Beam Cannon Energy Gun Medium Laser Energy Cannon Beam Cannon Ballistic Cannon Light Cannon Special Weapon Mining Laser Build | -11 -10 -10 ------- Run | Yrd Mat Min Slots Evolved . | . . . Power . | . . . Propulsion . | . . . Utility . | . . . Weapon . | . . . Parts Attached 29 | 7 21 1 Power 4 | 1 3 . Engine 4 | 1 3 . Core . | . . . Reactor . | . . . Propulsion 8 | 2 6 . Treads 2 | . 2 . Leg 3 | . 3 . Wheel 3 | 2 1 . Hover . | . . . Flight . | . . . Utility 7 | 2 4 1 Device 3 | 1 2 . Storage 3 | 1 2 . Processor . | . . . Hackware . | . . . Protection 1 | . . 1 Artifact . | . . . Weapon 10 | 2 8 . Energy Gun 7 | 2 5 . Energy Cannon 1 | . 1 . Ballistic Gun . | . . . Ballistic Cannon 1 | . 1 . Launcher . | . . . Special Weapon 1 | . 1 . Impact Weapon . | . . . Slashing Weapon . | . . . Piercing Weapon . | . . . Special Melee Weapon . | . . . Unidentified Prototypes . | . . . Corrupted Parts 1 | . 1 . System Corruption 2 | . 2 . Parts Lost 8 | . 8 . Power 2 | . 2 . Propulsion . | . . . Utility 3 | . 3 . Weapon 3 | . 3 . Highest Loss Streak 4 | . 4 . To Critical Strikes . | . . . Average Backups 7 | 5 7 8 Power . | . . 1 Propulsion 3 | 3 3 3 Utility 1 | . 1 2 Weapon 2 | 1 2 2 Tool/Special . | . . . Unused Backups 13 | 2 3 8 Power 1 | . . 1 Propulsion 6 | 2 1 3 Utility 2 | . . 2 Weapon 4 | . 2 2 Tool/Special . | . . . Average Slot Usage (%) 98 | . 98 100 Engine 14 | . 14 14 Treads 17 | . 14 28 Leg 2 | . 3 . Wheel 7 | . 9 . Device 3 | . 3 . Storage 22 | . 23 21 Protection 1 | . . 6 Energy Gun 7 | . 9 . Energy Cannon 10 | . 8 14 Ballistic Cannon 9 | . 8 14 Peak Build Rating 9 | 9 9 7 Average Rating 6 | 5 7 6 On Entrance 5 | . 9 7 Naked Turns . | . . . Heaviest Build 19 | 15 19 19 Greatest Support 40 | 26 40 40 Greatest Overweight (x) 1 | . 1 . Average Overweight (x) . | . . . Largest Inventory Capacity 8 | 8 8 8 Average Capacity 7 | 7 7 8 Most Carried 8 | 7 8 8 Average Carried 7 | 5 7 8 Final Capacity 8 | 8 8 8 Final Carried 8 | 7 8 8 Class Distribution -------------------- 96% | Mutant 3% | Scavenger-Mutant Dominant Class ---------------- Mutant | -10/Materials Mutant | -10/Mines Resources | -11 -10 -10 ----------- Run | Yrd Mat Min Matter Collected 967 | 270 541 156 Remotely . | . . . Salvage Created 1139 | 239 805 95 Parts 90 | 23 55 12 Haulers Intercepted 2 | . 2 . Recyclers Shooed 2 | . 1 1 Parts Field Recycled . | . . . Retrieved Matter . | . . . Parts Self-Destructed . | . . . Prevented . | . . . Kills | -11 -10 -10 ------- Run | Yrd Mat Min Combat Hostiles Destroyed 22 | . 13 9 Guns 11 | . 11 . Cannons 11 | . 2 9 Classes Destroyed 10 | 3 7 . Worker 5 | 2 3 . Builder 2 | . 2 . Tunneler 5 | 5 . . Hauler 2 | . 2 . Recycler 1 | 1 . . Mechanic 1 | . 1 . Operator 3 | . 3 . Watcher 3 | . 3 . Swarmer 12 | . 3 9 Grunt 10 | . 10 . Best Kill Streak 6 | 6 6 3 Combat Bots Only 3 | . 3 3 Max Kills in Single Turn 2 | 1 2 1 Gunslinging 1 | . 1 . Exploded . | . . . Melee . | . . . Uniques/NPCs Destroyed . | . . . Combat | -11 -10 -10 -------- Run | Yrd Mat Min Hostile Shots Fired 128 | . 84 44 Missed 26 | . 15 11 Hits 102 | . 69 33 Projectile 102 | . 69 33 Critical Strikes 5 | . 3 2 Damage Taken 1146 | . 877 269 Core 256 | . 184 72 Absorbed by Shields . | . . . Core Remaining (%) 100 | 100 . . Volleys Fired 139 | 14 95 30 Largest 2 | 2 2 2 Hottest 100 | 90 100 90 Shots Fired 259 | 25 174 60 Gun 143 | 25 118 . Cannon 110 | . 50 60 Launcher . | . . . Special 6 | . 6 . Kinetic 51 | . 21 30 Thermal 182 | 14 138 30 Explosive . | . . . Electromagnetic 26 | 11 15 . Robot Hit Streak 10 | 10 9 6 Robot Miss Streak 8 | 1 5 8 Penetration Max . | . . . Secondary Targets 2 | . 2 . Max Gunslinging Chain 1 | . 1 . Shots Hit Robots 133 | 18 96 19 Core Hits 58 | 9 40 9 Critical Kills . | . . . Critical Parts Destroyed . | . . . Critical Strikes 7 | 1 6 . Burn 7 | 1 6 . Melee Attacks . | . . . Impact . | . . . Slashing . | . . . Piercing . | . . . Sneak Attacks . | . . . Combat Hostiles . | . . . Follow-up Attacks . | . . . Damage Inflicted 1968 | 247 1362 359 Guns 1196 | 247 949 . Cannons 752 | . 397 355 Explosions . | . . . Melee . | . . . Ramming 20 | . 16 4 Kinetic 332 | . 152 180 Thermal 1364 | 138 1051 175 Explosive . | . . . Electromagnetic 252 | 109 143 . Impact . | . . . Slashing . | . . . Piercing . | . . . Highest Corruption 5 | . 5 5 Average Corruption 3 | . 3 5 Corruption Purged . | . . . Corruption Blocked . | . . . Effects 54 | . 38 16 Message Errors 12 | . 10 2 Matter Fused 14 | . 7 7 Heat Flow Errors 4 | . 3 1 Energy Discharges 8 | . 4 4 Parts Fused 1 | . 1 . Data Loss (minor) 6 | . 6 . Data Loss (major) 1 | . . 1 Misfires 3 | . 3 . Alerts 2 | . 1 1 Weapon Failures 3 | . 3 . Overload Shots . | . . . Overflow Damage 4 | . 4 . Projectiles 4 | . 4 . Explosions . | . . . Melee . | . . . Knockbacks 8 | . 3 5 Impact . | . . . Kinetic 8 | . 3 5 Secondary . | . . . Self-Inflicted Damage . | . . . Shots . | . . . Rammed 3 | . 2 1 Targets Rammed 4 | . 3 1 Kicked 1 | . 1 . Crushed . | . . . Highest Temperature 469 | 150 469 273 Average Temperature 98 | 51 110 85 Received Heat Transfer 501 | . 492 9 Effects 4 | . 4 . Shutdowns 1 | . 1 . Matter Decay 1 | . 1 . Short Circuit 2 | . 2 . Siege Activations . | . . . Martial Activations . | . . . Shielding Activations . | . . . Robots Disrupted . | . . . Combat Hostiles . | . . . Robots Corrupted . | . . . Combat Hostiles . | . . . Parts Fried . | . . . Impact Corruptions . | . . . Robots Melted . | . . . Combat Hostiles . | . . . Parts Melted 6 | . 6 . Heat Transferred 4146 | 481 3295 370 Parts Sabotaged . | . . . Parts Stolen . | . . . Parts Stripped . | . . . Power Chain Reactions . | . . . Alert | -11 -10 -10 ------- Run | Yrd Mat Min Maximum Alert Level 1 | . . 1 Low Security (%) 97 | 100 100 88 Level 1 2 | . . 11 Level 2 . | . . . Level 3 . | . . . Level 4 . | . . . Level 5 . | . . . High Security . | . . . Max Security . | . . . Peak Influence 224 | 20 85 224 Initial . | . . . Average 28 | 4 17 75 Influence Increases 878 | 40 478 360 Destroy 0b10 Robot/C 440 | . 260 180 Destroy 0b10 Robot/NC 110 | 40 70 . Destroy Leader 100 | . 70 30 Successful Hack 41 | . 41 . Disable Machine 150 | . 30 120 Destroy Structure 7 | . 7 . Lose Combat Pursuer 30 | . . 30 Influence Decreases 710 | 40 478 192 Time Decay 630 | 40 398 192 Lost Part 80 | . 80 . Squads Dispatched 3 | . 3 . Investigation 1 | . 1 . Extermination . | . . . Reinforcement 2 | . 2 . Assault . | . . . Garrison . | . . . Intercept . | . . . Searches Triggered . | . . . Construction Impeded . | . . . Haulers Reinforced . | . . . Active Scanning Responses . | . . . Cargo Convoy Interrupts . | . . . Stealth | -11 -10 -10 --------- Run | Yrd Mat Min Distress Signals 1 | . 1 . Communications Jammed . | . . . Distress Signals . | . . . Times Spotted 40 | . 29 11 Peak Tracking Total 5 | . 5 3 Tactical Retreats 2 | . . 2 Traps | -11 -10 -10 ------- Run | Yrd Mat Min Traps Triggered 2 | . 2 . Indirectly . | . . . Trap Hack Attempts . | . . . Triggered . | . . . Disarmed . | . . . Reprogrammed . | . . . Reused . | . . . Traps Extracted . | . . . Installed . | . . . Triggered . | . . . Machines | -11 -10 -10 ---------- Run | Yrd Mat Min Machines Disabled 10 | . 2 8 Max in Single Turn 2 | . 1 2 Machines Repaired . | . . . Machines Dismantled . | . . . Machines Sabotaged . | . . . Overloaded Fab Kills . | . . . Hacking | -11 -10 -10 --------- Run | Yrd Mat Min Machines Accessed 8 | . 8 . Terminals 6 | . 6 . Fabricators . | . . . Repair Stations . | . . . Recycling Units 2 | . 2 . Scanalyzers . | . . . Garrison Access . | . . . Total Hacks 28 | . 28 . Successful 10 | . 10 . Failed 17 | . 17 . Catastrophic 2 | . 2 . Database Lockouts 1 | . 1 . Manual 19 | . 19 . Terminals 20 | . 20 . Fabricators . | . . . Repair Stations . | . . . Recycling Units 8 | . 8 . Scanalyzers . | . . . Garrison Access . | . . . Terminal Hacks 2 | . 2 . Robot Analysis 2 | . 2 . Fabricator Hacks . | . . . Repair Station Hacks . | . . . Recycling Unit Hacks 3 | . 3 . Report Inventory 2 | . 2 . Retrieve Components 1 | . 1 . Scanalyzer . | . . . Garrison Access Hacks . | . . . Unauthorized Hacks 5 | . 5 . Terminals 3 | . 3 . Botnet 1 | . 1 . Operators 2 | . 2 . Fabricators . | . . . Repair Stations . | . . . Recycling Units 2 | . 2 . Reject 2 | . 2 . Scanalyzers . | . . . Garrison Access . | . . . Data Cores Recovered . | . . . Used . | . . . Hacking Detections 8 | . 8 . Full Trace Events 1 | . 1 . Feedback Events 1 | . 1 . Corruption 1 | . 1 . Feedback Blocked . | . . . Robot Schematics Acquired . | . . . Robots Built . | . . . Authchips . | . . . Time . | . . . Total Robot Build Rating . | . . . Part Schematics Acquired . | . . . Parts Built . | . . . Authchips . | . . . Time . | . . . Total Part Build Rating . | . . . Parts Repaired . | . . . Time . | . . . Parts Recycled . | . . . Recycled Matter . | . . . Retrieved Matter . | . . . Retrieved Components 10 | . 10 . Parts Scanalyzed . | . . . Part Schematics Acquired . | . . . Parts Damaged . | . . . Bothacking | -11 -10 -10 ------------ Run | Yrd Mat Min Used RIF Installer . | . . . Robots Hacked . | . . . Non-combat . | . . . Combat . | . . . Robot Hacks Applied . | . . . Relay Couplers Released . | . . . Fabnet Peak Effective % . | . . . Robots Rewired . | . . . Allies Hacked . | . . . Hacks Repelled . | . . . Allies | -11 -10 -10 -------- Run | Yrd Mat Min Total Allies . | . . . Largest Group . | . . . Highest-Rated Group . | . . . Highest-Rated Ally . | . . . Total Orders . | . . . Ally Attacks . | . . . Total Damage . | . . . Kills . | . . . Allies Corrupted . | . . . Allies Melted . | . . . Intel | -11 -10 -10 ------- Run | Yrd Mat Min Active Infowar (turns) 146 | 8 138 . Terrain 146 | 8 138 . Robot Analysis Total 2 | . 2 . Derelict Logs Recovered . | . . . Drone Launches . | . . . Drone Recoveries . | . . . Exploration | -11 -10 -10 ------------- Run | Yrd Mat Min Turns Passed 2697 | 183 1949 565 Spaces Moved 1538 | 138 1118 282 Core 3 | 3 . . Treads 860 | . 578 282 Legs 143 | . 143 . Wheels 532 | 135 397 . Hover . | . . . Flight . | . . . Fastest Speed 50 | 50 80 160 Average Speed 130 | 89 128 160 Slowest Speed 190 | 100 190 160 Overloaded Moves . | . . . Propulsion Burnouts . | . . . Robots Hopped . | . . . Potential Cave-ins . | . . . Cave-ins Triggered . | . . . Exploration Rate (%) 53 | 7 100 52 Regions Visited 2 Branch Regions 1 Pre-discovered Areas . | . . . Known Exits Taken . | . . . Unknown Exits Taken 2 | 1 1 . Scrap Searched 1 | . . 1 Spaces Dug 4 | . 4 . Terrain Destroyed 6 | . 6 . Melee . | . . . Projectile 6 | . 6 . AOE . | . . . Terrain Rammed . | . . . Walls Destroyed . | . . . Machines Disabled . | . . . Actions | -11 -10 -10 --------- Run | Yrd Mat Min Total 1954 | 169 1448 337 Wait 187 | . 165 22 Move 1536 | 137 1117 282 Hop . | . . . Pick Up 26 | 9 17 . Fast Attach 22 | 7 14 1 Attach 8 | . 8 . Detach 7 | . 6 1 Swap 3 | . 3 . Drop 22 | 2 20 . Fire 139 | 14 95 30 Melee . | . . . Ram 1 | . 1 . Kick 1 | . 1 . Crush 2 | . 1 1 Escape Stasis . | . . . Rewire . | . . . Trap . | . . . Miscellaneous . | . . . Route ------- -11/Scrapyard -10/Materials (discovered 5 exits: [*Mat x3] / [*Min] / [*Sub]) -10/Mines (discovered 3 exits: [*Mat x2] / [*Sub]) History --------- Turn | Location | Event 25 | -11/Scrapyard | Discovered new exit (range 16) 184 | -11/Scrapyard | Entered Materials 314 | -10/Materials | Build established: Mutant 615 | -10/Materials | Discovered new exit (range 9) 773 | -10/Materials | Core integrity fell below 50% 789 | -10/Materials | Lost 4 parts (1p2u1w) 944 | -10/Materials | Discovered new exit (range 15) 1532 | -10/Materials | Discovered new exit (range 16) 1595 | -10/Materials | Central database locked down 1732 | -10/Materials | Discovered new exit (range 7) 1770 | -10/Materials | Discovered new exit (range 11) 2133 | -10/Materials | Entered Mines 2142 | -10/Mines | Core integrity fell below 20% 2232 | -10/Mines | Discovered new exit (range 8) 2461 | -10/Mines | Discovered new exit (range 12) 2583 | -10/Mines | Discovered new exit (range 6) 2698 | -10/Mines | Destroyed by G-47 Trooper with Particle Gun Last Messages --------------- 02556_ T-07 Excavator is excavating. 02560_ Seismic Survey Station disabled. 02565_ T-07 Excavator is excavating. 02566_ Seismic Survey Station disabled. 02569_ T-07 Excavator is excavating. 02569_ Seismic Survey Station disabled. 02573_ T-07 Excavator is excavating. 02583_ EXIT=FOUND 02586_ System corrupted: Energy discharge (-90). 02587_ T-07 Excavator is excavating. 02606_ Acquired 3 matter. 02634_ System corrupted: Heat flow error (+130). 02670_ System corrupted: Matter fused (-5). 02670_ R-06 Scavenger collects Lgt. Ion Engine. 02670_ Acquired 13 matter. 02672_ Acquired 1 matter. 02680_ R-06 Scavenger collects Flight Unit. 02686_ System corrupted: IFF burst signal emitted. 02697_ G-47 Trooper knocked back. Map ----- +----------------------------------------------------+ | """ """ #??????????????# #??????????????????????? | | """ """ #?????????????## #??????????????????????? | | """ """ #????????????## ##?????????????????????? | | #####????##### #?????????????????????? | | """ """ ###### #?????????????????????? | | """ """ ### ##????????????????????? | | """ """ #?# #????????????????????? | | #?####### ##???????????????????? | | ##########???????# #???????????????????? | | #????????## #?????????#?????????? | | """ #?????????# ## ##???????? ##????????? | | """ #?????????## #### ##??????? ####?????? | | """ < #??????????####?## #####?? ??????? | | """ #???????????????# ## #?????????? | | #???????????????# #??????????? | | #########???????????????## ##??????????? | | ????????????????????????## #???????????? | | ???????????????????????## ### ##???????????? | | ?????????????????????### ##??####????????????? | | ????????????????????## ##?????????????? ????? | | ???????????????????## ##????????????### ##### | | ??????????????????## ###?????????????# | | ?????????????????## g ##???????????????# """ "" | | ????????????????## ##???????????????# "" "" | | ####????????????# % ##??????????????# """ """ | | #????????????# @#??????????????# | | ## #????????????# #??????????????# """ """ | | ?# #????????????# ##?????##########="" "" | | ?# #????????????# #??????# * [ " " " | | ## ##???????????# #??????# ########= | | # ##??????????# ## #??????# #??????# ""= | | ##???#?????## ### #??????# ######## "" """ | | ## ##?????###??# #??????# # ## """ """ | | # #??????????# ######## # ## | | ## """ #??????????# = ## "" "" | | """ ##??????????############# < ## "" "" | | """ ##???????????????????????# ## """ """ | | ## ##????????????????????????# ## | | ?## ##?????????????????????????################ | | ???#####?????????????????????????????????????????? | | ?????????????????????????????????????????????????? | | ?????????????????????????????????????????????????? | | | | | | | | | | | | | | | | | +----------------------------------------------------+ Best States ------------- Heat Dissipation 35 Energy Generation 10 Energy Capacity 250 Matter Stores 450 Matter Capacity 550 Sight Range 16 Terrain Scan Range 16 Terrain Scan Density 10 Armor Coverage 150 Evasion (%) 55 Recoil Reduction 2 Item Schematics ----------------- None Robot Schematics ------------------ None Fabricated ------------ Nothing Repaired ---------- Nothing Alien Tech Used ----------------- None Achievements -------------- None Challenges ------------ None Game ------ Seed GatlingVisualModule Manual? 0 Play Time 00:18:18 Cumulative 219.3 hours Start 2025.06.16 @ 15:07:28 End 2025.06.16 @ 15:24:16 Sessions 1 Manual Loads 0 Difficulty Rogue Special Mode None Game No. 208 Rogue 208 Adventurer 0 Explorer 0 Win Type - Total 1 Types 1/0/0/0/0/0/0/0/0/0 Lore% 52 Gallery% 59 Achievement% 47 Wizard Run 0 Options --------- Layout 2 ASCII 1 Keyboard 1 Movement Numpad Keybinds 0 Fullscreen 2 Font 32/TamsynBold Map View 50x44 Zoom Use 0% Tactical HUD 1 Map Filters NONE Filters NONE Steam 1 RUN: ffc1b799-aa96-47b0-a1cc-4d3d63e44237